Cogmind - Beta 16.1 @@@ ROGUE MODE // 2026.03.15 @ 23:49:02 Player: MOPO3 Result: Destroyed by G-47 Trooper with Particle Gun Performance ------------- Evolutions (2) 1000 Regions Visited (7) 1400 Robots Destroyed (39) 195 Value Destroyed (880) 880 Prototype IDs (25) 500 Alien Tech Used (0) 0 Bonus (300) 300 TOTAL SCORE: 4275 Bonus ------- Aligned with FarCom 300 Cogmind --------- Core Integrity 0/550 Matter 224/300 Energy 100/100 System Corruption 0% Temperature Cool (27) Movement Core (700) Ox13 Location -8/Storage Parts ------- > --- POWER (2) -------- (None) > --- PROPULSION (3) --- (None) > --- UTILITY (4) ------ High-capacity Storage Unit Signal Interpreter > --- WEAPON (2) ------- (None) > --- INVENTORY (20) --- Improved Ion Engine Light Nuclear Core Advanced Treads Advanced Treads Titanium Leg Medium Storage Unit Large Storage Unit High-capacity Battery (250) Large Matter Pod (150) Improved Sensor Array Experimental Sensor Array Light EM Pulse Cannon Advanced Beam Cannon Advanced Beam Cannon Mining Claw Peak State ------------ > --- POWER ------------ Light Nuclear Core Light Nuclear Core > --- PROPULSION ------- Aluminum Leg Carbon-fiber Leg Titanium Leg > --- UTILITY ---------- High-capacity Storage Unit Experimental Sensor Array Signal Interpreter 0b10 Alert Chip > --- WEAPON ----------- Advanced Beam Cannon Grenade Launcher > --- INVENTORY -------- Improved Ion Engine Nuclear Core Light Nuclear Core Light Nuclear Core Aluminum Leg Aluminum Leg Aluminum Leg Flight Unit Flight Unit Flight Unit Medium Storage Unit High-capacity Battery Large Matter Pod Particle Gun Light EM Pulse Cannon Beam Cannon Advanced Beam Cannon Advanced Beam Cannon Mining Claw [Rating: 37] Favorites ----------- Power Light Ion Engine Engine Light Ion Engine Power Core Light Nuclear Core Propulsion Aluminum Leg Treads Light Treads Leg Aluminum Leg Flight Unit Flight Unit Utility Signal Interpreter Device Improved Terrain Scanner Storage High-capacity Storage Unit Processor Signal Interpreter Protection Light Armor Plating Weapon Slug Cannon Energy Gun Medium Laser Energy Cannon Light EM Pulse Cannon Ballistic Gun Assault Rifle Ballistic Cannon Slug Cannon Launcher Grenade Launcher Impact Weapon Flail Slashing Weapon Mining Claw Build | -11 -10 -9 -9 -9 -8 -8 -8 ------- Run | Yrd Mat Mat Min Exi Min Mat Sto Slots Evolved 4 | . . 2 . . . 2 . Power 1 | . . . . . . 1 . Propulsion 1 | . . 1 . . . . . Utility 2 | . . 1 . . . 1 . Weapon . | . . . . . . . . Parts Attached 45 | 8 6 3 8 . 4 10 6 Power 6 | 1 1 . . . 1 1 2 Engine 2 | 1 1 . . . . . . Core 4 | . . . . . 1 1 2 Reactor . | . . . . . . . . Propulsion 16 | 4 2 . 2 . 2 4 2 Treads 2 | 2 . . . . . . . Leg 10 | 2 . . 2 . 2 4 . Wheel . | . . . . . . . . Hover . | . . . . . . . . Flight 4 | . 2 . . . . . 2 Utility 11 | 1 1 2 2 . 1 4 . Device 3 | . . . 1 . . 2 . Storage 2 | 1 . . 1 . . . . Processor 5 | . 1 2 . . 1 1 . Hackware . | . . . . . . . . Protection 1 | . . . . . . 1 . Artifact . | . . . . . . . . Weapon 12 | 2 2 1 4 . . 1 2 Energy Gun 3 | 1 1 . . . . . 1 Energy Cannon 4 | . . . 2 . . 1 1 Ballistic Gun 1 | 1 . . . . . . . Ballistic Cannon 1 | . . . 1 . . . . Launcher 1 | . 1 . . . . . . Special Weapon . | . . . . . . . . Impact Weapon 1 | . . 1 . . . . . Slashing Weapon 1 | . . . 1 . . . . Piercing Weapon . | . . . . . . . . Special Melee Weapon . | . . . . . . . . Unidentified Prototypes 2 | . . . . . . 2 . Parts Lost 16 | . . . . . . 4 12 Power 4 | . . . . . . 1 3 Propulsion 6 | . . . . . . 1 5 Utility 3 | . . . . . . 1 2 Weapon 3 | . . . . . . 1 2 Highest Loss Streak 12 | . . . . . . 2 12 To Critical Strikes . | . . . . . . . . Average Backups 12 | 3 7 7 9 13 16 17 17 Power 2 | 1 1 2 1 2 2 3 2 Propulsion 4 | 1 4 4 3 4 5 5 4 Utility 3 | . . . 1 4 4 4 6 Weapon 2 | . 1 1 2 3 3 4 4 Tool/Special . | . . . . . . . . Unused Backups 22 | . 1 . 4 4 . 3 10 Power 5 | . . . 2 . . 1 2 Propulsion 4 | . 1 . 1 . . . 2 Utility 7 | . . . . 2 . . 5 Weapon 5 | . . . 1 2 . 1 1 Tool/Special 1 | . . . . . . 1 . Average Slot Usage (%) 96 | . 93 82 95 100 100 97 79 Engine 8 | . 14 11 11 11 3 . . Core 4 | . . . . . 7 17 11 Leg 29 | . 26 22 29 33 33 26 18 Device 7 | . . . 9 11 4 4 6 Storage 10 | . 14 11 11 11 11 9 9 Processor 13 | . 10 17 12 11 17 18 18 Energy Gun 1 | . 8 10 . . . . 1 Energy Cannon 1 | . . . 5 . . . . Ballistic Gun 1 | . 12 1 . . . . . Ballistic Cannon 7 | . . . 10 11 11 3 . Launcher 5 | . 4 . 3 9 . 5 5 Slashing Weapon 3 | . . . . 1 11 8 5 Peak Build Rating 37 | 6 7 11 20 23 24 37 28 Average Rating 19 | 3 6 9 16 19 22 29 23 On Entrance 13 | . 6 7 10 19 20 24 24 Avg Prop Armor Cover (%) . | . . . . . . . . Naked Turns . | . . . . . . . . Heaviest Build 64 | 11 13 12 55 54 54 64 58 Greatest Support 42 | 20 20 20 38 38 38 42 37 Greatest Overweight (x) 14 | 3 1 . 1 1 1 1 14 Average Overweight (x) . | 1 . . . 1 1 1 1 Largest Inventory Capacity 20 | 8 8 8 20 20 20 20 20 Average Capacity 17 | 7 8 8 14 20 20 20 20 Most Carried 20 | 7 8 8 12 18 20 20 19 Average Carried 12 | 3 7 7 9 13 16 17 17 Final Capacity 20 | 8 8 8 20 20 20 20 20 Final Carried 20 | 5 8 8 12 14 17 20 15 Class Distribution -------------------- 74% | Mutant 18% | Scavenger-Mutant 4% | Scavenger-Assassin Dominant Class ---------------- Mutant | -10/Materials Mutant | -9/Materials Mutant | -9/Mines Mutant | -9/Exiles Scavenger-Mutant | -8/Mines Scavenger-Mutant | -8/Materials Mutant | -8/Storage Resources | -11 -10 -9 -9 -9 -8 -8 -8 ----------- Run | Yrd Mat Mat Min Exi Min Mat Sto Matter Collected 1129 | 161 370 46 100 38 162 208 44 Remotely . | . . . . . . . . Salvage Created 1092 | . 221 163 100 . 119 350 139 Parts 73 | . 30 6 10 . 7 13 7 Haulers Intercepted 1 | . . . . . . 1 . Recyclers Shooed 1 | . 1 . . . . . . Parts Field Recycled . | . . . . . . . . Retrieved Matter . | . . . . . . . . Parts Self-Destructed . | . . . . . . . . Prevented . | . . . . . . . . Parts Restored . | . . . . . . . . Kills | -11 -10 -9 -9 -9 -8 -8 -8 ------- Run | Yrd Mat Mat Min Exi Min Mat Sto Combat Hostiles Destroyed 24 | . 10 1 1 . 3 6 3 Melee 1 | . . . . . . 1 . Guns 5 | . 4 1 . . . . . Cannons 8 | . . . 1 . 3 3 1 AOE 10 | . 6 . . . . 2 2 Classes Destroyed 9 | . 4 1 1 . . 3 . Worker 7 | . 3 2 1 . 1 . . Builder 2 | . . . . . . 1 1 Tunneler 1 | . . . 1 . . . . Hauler 1 | . . . . . . 1 . Recycler 3 | . 1 1 . . . 1 . Watcher 1 | . . . . . . 1 . Swarmer 9 | . 9 . . . . . . Grunt 13 | . 1 . 1 . 3 5 3 Sentry 2 | . . 1 . . . 1 . Best Kill Streak 6 | . 6 2 1 . 2 5 4 Combat Bots Only 6 | . 6 1 1 . 2 3 3 Max Kills in Single Turn 3 | . 3 1 1 . 1 3 1 Gunslinging . | . . . . . . . . Exploded 3 | . 3 . . . . 1 1 Melee 1 | . . . . . . 1 . Uniques/NPCs Destroyed . | . . . . . . . . Combat | -11 -10 -9 -9 -9 -8 -8 -8 -------- Run | Yrd Mat Mat Min Exi Min Mat Sto Hostile Shots Fired 222 | . 32 6 . . 15 50 119 Missed 58 | . 13 2 . . 5 11 27 Hits 164 | . 19 4 . . 10 39 92 Projectile 164 | . 19 4 . . 10 39 92 Critical Strikes 9 | . . . . . . 1 8 Damage Taken 2361 | . 158 62 . . 172 536 1433 Core 655 | . 80 17 . . . 49 509 Absorbed by Shields . | . . . . . . . . Core Remaining (%) 87 | 100 68 . . . 95 . . Volleys Fired 78 | . 24 6 1 . 14 18 15 Largest 2 | . 2 1 1 . 1 2 1 Hottest 96 | . 70 50 60 . 40 96 68 Shots Fired 94 | . 33 6 1 . 14 25 15 Gun 34 | . 28 6 . . . . . Cannon 45 | . . . 1 . 14 20 10 Launcher 15 | . 5 . . . . 5 5 Special . | . . . . . . . . Kinetic 46 | . 19 . . . 14 13 . Thermal 26 | . 9 6 1 . . . 10 Explosive 15 | . 5 . . . . 5 5 Electromagnetic 7 | . . . . . . 7 . Robot Hit Streak 7 | . 6 6 7 . 1 4 7 Robot Miss Streak 5 | . 5 . . . 4 2 1 Penetration Max . | . . . . . . . . Secondary Targets . | . . . . . . . . Shots Hit Robots 62 | . 17 10 3 . 6 17 9 Core Hits 60 | . 20 4 2 . 5 17 12 Critical Kills 4 | . . 2 . . . 2 . Critical Parts Destroyed . | . . . . . . . . Critical Strikes 5 | . . 3 . . . 2 . Burn 1 | . . 1 . . . . . Destroy 2 | . . . . . . 2 . Smash 2 | . . 2 . . . . . Melee Attacks 66 | . . 9 2 9 1 44 1 Impact 9 | . . 9 . . . . . Slashing 57 | . . . 2 9 1 44 1 Piercing . | . . . . . . . . Sneak Attacks 8 | . . 4 2 . 1 1 . Combat Hostiles . | . . . . . . . . Follow-up Attacks . | . . . . . . . . Damage Inflicted 2404 | . 389 418 117 . 238 805 437 Guns 287 | . 226 61 . . . . . Cannons 724 | . . . 17 . 189 313 205 Explosions 771 | . 163 . . . . 376 232 Melee 622 | . . 357 100 . 49 116 . Ramming . | . . . . . . . . Kinetic 582 | . 175 . . . 189 218 . Thermal 492 | . 51 61 17 . . 158 205 Explosive 613 | . 163 . . . . 218 232 Electromagnetic 95 | . . . . . . 95 . Impact 357 | . . 357 . . . . . Slashing 265 | . . . 100 . 49 116 . Piercing . | . . . . . . . . Highest Corruption . | . . . . . . . . Average Corruption . | . . . . . . . . Corruption Purged . | . . . . . . . . Corruption Blocked . | . . . . . . . . Overload Shots . | . . . . . . . . Overflow Damage 128 | . . 92 10 . . 26 . Projectiles 10 | . . . . . . 10 . Explosions 16 | . . . . . . 16 . Melee 102 | . . 92 10 . . . . Knockbacks 5 | . . 2 . . 2 1 . Impact 2 | . . 2 . . . . . Kinetic 3 | . . . . . 2 1 . Secondary . | . . . . . . . . Self-Inflicted Damage 21 | . . . . . . . 21 Shots 1 | . . . . . . . 1 Rammed . | . . . . . . . . Targets Rammed . | . . . . . . . . Kicked . | . . . . . . . . Crushed . | . . . . . . . . Highest Temperature 450 | . 18 42 14 . 51 321 450 Average Temperature 117 | . 9 23 10 . 33 135 187 Received Heat Transfer 1275 | . 6 18 . . 90 189 972 Effects 2 | . . . . . . 1 1 Interference 1 | . . . . . . 1 . Short Circuit 1 | . . . . . . . 1 Siege Activations . | . . . . . . . . Martial Activations . | . . . . . . . . Shielding Activations . | . . . . . . . . Robots Disrupted . | . . . . . . . . Combat Hostiles . | . . . . . . . . Robots Corrupted 1 | . . 1 . . . . . Combat Hostiles . | . . . . . . . . Parts Fried . | . . . . . . . . Impact Corruptions 3 | . . 3 . . . . . Robots Melted . | . . . . . . . . Combat Hostiles . | . . . . . . . . Parts Melted 2 | . . 1 . . . . 1 Heat Transferred 964 | . 148 259 37 . . 150 370 Parts Sabotaged . | . . . . . . . . Parts Stolen . | . . . . . . . . Parts Stripped . | . . . . . . . . Power Chain Reactions . | . . . . . . . . Alert | -11 -10 -9 -9 -9 -8 -8 -8 ------- Run | Yrd Mat Mat Min Exi Min Mat Sto Maximum Alert Level 1 | . 1 . . . . . . Low Security (%) 99 | 100 93 100 100 . 100 100 100 Level 1 . | . 6 . . . . . . Level 2 . | . . . . . . . . Level 3 . | . . . . . . . . Level 4 . | . . . . . . . . Level 5 . | . . . . . . . . High Security . | . . . . . . . . Max Security . | . . . . . . . . Peak Influence 218 | . 218 56 30 . 57 144 51 Initial 43 | . . 43 . . . . . Average 36 | . 142 25 1 . 16 38 8 Influence Increases 830 | . 292 49 40 . 81 256 112 Destroy 0b10 Robot/C 444 | . 200 20 20 . 60 96 48 Destroy 0b10 Robot/NC 69 | . 20 15 10 . 4 16 4 Destroy Leader 114 | . 40 10 10 . 10 28 16 Successful Hack 20 | . 4 . . . . . 16 Disable Machine 36 | . . . . . . 36 . Destroy Structure 147 | . 28 4 . . 7 80 28 Influence Decreases 830 | . 188 153 40 . 81 256 112 Entered New Map 61 | . . 61 . . . . . Time Decay 675 | . 188 92 40 . 81 236 38 Lost Part 90 | . . . . . . 20 70 Purge Threat 4 | . . . . . . . 4 Squads Dispatched 7 | . 1 . . . . 3 3 Investigation 2 | . . . . . . 1 1 Extermination . | . . . . . . . . Reinforcement 5 | . 1 . . . . 2 2 Assault . | . . . . . . . . Garrison . | . . . . . . . . Intercept . | . . . . . . . . Searches Triggered . | . . . . . . . . Construction Impeded 1 | . . . . . . 1 . Haulers Reinforced . | . . . . . . . . Active Scanning Responses . | . . . . . . . . Cargo Convoy Interrupts . | . . . . . . . . Stealth | -11 -10 -9 -9 -9 -8 -8 -8 --------- Run | Yrd Mat Mat Min Exi Min Mat Sto Distress Signals 1 | . . . . . . . 1 Communications Jammed . | . . . . . . . . Distress Signals . | . . . . . . . . Times Spotted 46 | . 14 1 1 . 3 19 8 Peak Tracking Total 7 | . 6 1 1 . 3 5 7 Tactical Retreats . | . . . . . . . . Traps | -11 -10 -9 -9 -9 -8 -8 -8 ------- Run | Yrd Mat Mat Min Exi Min Mat Sto Traps Triggered 4 | . 4 . . . . . . Indirectly . | . . . . . . . . Trap Hack Attempts . | . . . . . . . . Triggered . | . . . . . . . . Disarmed . | . . . . . . . . Reprogrammed . | . . . . . . . . Reused . | . . . . . . . . Traps Extracted . | . . . . . . . . Installed . | . . . . . . . . Triggered . | . . . . . . . . Machines | -11 -10 -9 -9 -9 -8 -8 -8 ---------- Run | Yrd Mat Mat Min Exi Min Mat Sto Machines Disabled 3 | . . . . . . 3 . Max in Single Turn 1 | . . . . . . 1 . Machines Repaired . | . . . . . . . . Machines Dismantled . | . . . . . . . . Machines Sabotaged . | . . . . . . . . Overloaded Fab Kills . | . . . . . . . . Hacking | -11 -10 -9 -9 -9 -8 -8 -8 --------- Run | Yrd Mat Mat Min Exi Min Mat Sto Machines Accessed 14 | . 4 1 1 5 . 1 2 Terminals 8 | . 3 1 1 . . 1 2 Fabricators . | . . . . . . . . Repair Stations . | . . . . . . . . Recycling Units 1 | . 1 . . . . . . Scanalyzers . | . . . . . . . . Garrison Access . | . . . . . . . . Total Hacks 71 | . 9 2 2 50 . 3 5 Successful 60 | . 6 . 1 50 . . 3 Failed 11 | . 3 2 1 . . 3 2 Catastrophic 1 | . . . . . . . 1 Database Lockouts . | . . . . . . . . Manual 19 | . 6 . 2 3 . 3 5 Terminals 19 | . 7 2 2 . . 3 5 Fabricators . | . . . . . . . . Repair Stations . | . . . . . . . . Recycling Units 2 | . 2 . . . . . . Scanalyzers . | . . . . . . . . Garrison Access . | . . . . . . . . Terminal Hacks 53 | . 2 . . 50 . . 1 Record 49 | . . . . 49 . . . Alert Level 1 | . 1 . . . . . . Unreport Threat 1 | . . . . . . . 1 Zone Layout 1 | . 1 . . . . . . Proto ID Catalog 1 | . . . . 1 . . . Fabricator Hacks . | . . . . . . . . Repair Station Hacks . | . . . . . . . . Recycling Unit Hacks 2 | . 2 . . . . . . Report Inventory 1 | . 1 . . . . . . Retrieve Matter 1 | . 1 . . . . . . Scanalyzer . | . . . . . . . . Garrison Access Hacks . | . . . . . . . . Unauthorized Hacks 5 | . 2 . 1 . . . 2 Terminals 5 | . 2 . 1 . . . 2 Botnet 5 | . 2 . 1 . . . 2 Fabricators . | . . . . . . . . Repair Stations . | . . . . . . . . Recycling Units . | . . . . . . . . Scanalyzers . | . . . . . . . . Garrison Access . | . . . . . . . . Data Cores Recovered . | . . . . . . . . Used . | . . . . . . . . Hacking Detections 8 | . 3 1 1 . . 1 2 Full Trace Events 2 | . . . . . . 1 1 Feedback Events . | . . . . . . . . Feedback Blocked . | . . . . . . . . Robot Schematics Acquired . | . . . . . . . . Robots Built . | . . . . . . . . Authchips . | . . . . . . . . Time . | . . . . . . . . Total Robot Build Rating . | . . . . . . . . Part Schematics Acquired . | . . . . . . . . Parts Built . | . . . . . . . . Authchips . | . . . . . . . . Time . | . . . . . . . . Total Part Build Rating . | . . . . . . . . Part Studies Acquired . | . . . . . . . . Parts Repaired . | . . . . . . . . Time . | . . . . . . . . Parts Recycled . | . . . . . . . . Recycled Matter . | . . . . . . . . Retrieved Matter . | . . . . . . . . Retrieved Components . | . . . . . . . . Parts Scanalyzed . | . . . . . . . . Part Schematics Acquired . | . . . . . . . . Parts Damaged . | . . . . . . . . Bothacking | -11 -10 -9 -9 -9 -8 -8 -8 ------------ Run | Yrd Mat Mat Min Exi Min Mat Sto Used RIF Installer . | . . . . . . . . Robots Hacked . | . . . . . . . . Non-combat . | . . . . . . . . Combat . | . . . . . . . . Robot Hacks Applied . | . . . . . . . . Relay Couplers Released . | . . . . . . . . Fabnet Peak Effective % . | . . . . . . . . Robots Rewired . | . . . . . . . . Allies Hacked . | . . . . . . . . Hacks Repelled . | . . . . . . . . Allies | -11 -10 -9 -9 -9 -8 -8 -8 -------- Run | Yrd Mat Mat Min Exi Min Mat Sto Total Allies 3 | . . . 3 . . . . Largest Group 3 | . . . 3 3 2 . . Highest-Rated Group 40 | . . . 40 40 24 . . Highest-Rated Ally 16 | . . . 16 16 16 . . Total Orders . | . . . . . . . . Ally Attacks 8 | . . . . . 8 . . Total Damage 74 | . . . . . 74 . . Kills . | . . . . . . . . Allies Corrupted . | . . . . . . . . Allies Melted 1 | . . . 1 . . . . Intel | -11 -10 -9 -9 -9 -8 -8 -8 ------- Run | Yrd Mat Mat Min Exi Min Mat Sto Active Infowar (turns) 3128 | . . 87 827 1881 91 242 . Optics 160 | . . 87 72 . . 1 . Sensors 241 | . . . . . . 241 . Terrain 2727 | . . . 755 1881 91 . . Robot Analysis Total . | . . . . . . . . Derelict Logs Recovered 1 | . . . 1 . . . . Drone Launches . | . . . . . . . . Drone Recoveries . | . . . . . . . . Exploration | -11 -10 -9 -9 -9 -8 -8 -8 ------------- Run | Yrd Mat Mat Min Exi Min Mat Sto Turns Passed 4823 | 82 401 209 827 1881 240 1001 182 Spaces Moved 2468 | 49 248 133 507 968 102 407 54 Core 36 | 32 1 . . . . . 3 Treads . | . . . . . . . . Legs 2410 | 17 228 133 507 968 102 407 48 Wheels . | . . . . . . . . Hover . | . . . . . . . . Flight 22 | . 19 . . . . . 3 Fastest Speed 37 | 50 37 120 120 190 190 190 193 Average Speed 171 | 127 115 120 153 190 190 191 238 Slowest Speed 750 | 200 130 120 190 190 190 195 750 Overloaded Moves . | . . . . . . . . Propulsion Burnouts . | . . . . . . . . Robots Hopped . | . . . . . . . . Potential Cave-ins . | . . . . . . . . Cave-ins Triggered . | . . . . . . . . Exploration Rate (%) 37 | 3 47 8 82 94 26 24 12 Regions Visited 7 Branch Regions 4 Pre-discovered Areas 1 | . . . . 1 . . . Known Exits Taken 6 | . 1 1 1 1 1 1 . Unknown Exits Taken 1 | 1 . . . . . . . Scrap Searched 2 | . . . 2 . . . . Spaces Dug 21 | . . 4 . 2 . 14 1 Terrain Destroyed 164 | . 29 4 . 2 7 84 38 Melee 21 | . . 4 . 2 . 14 1 Projectile 13 | . . . . . 7 6 . AOE 130 | . 29 . . . . 64 37 Terrain Rammed . | . . . . . . . . Walls Destroyed . | . . . . . . . . Machines Disabled . | . . . . . . . . Actions | -11 -10 -9 -9 -9 -8 -8 -8 --------- Run | Yrd Mat Mat Min Exi Min Mat Sto Total 2850 | 67 331 164 551 995 134 519 89 Wait 45 | . 20 3 2 1 3 7 9 Move 2461 | 48 247 132 506 967 101 406 54 Hop . | . . . . . . . . Pick Up 87 | 11 19 6 17 9 7 18 . Fast Attach . | . . . . . . . . Attach 36 | 6 10 2 2 . 2 8 6 Detach 2 | . . . . . . 1 1 Swap 31 | 2 5 2 10 1 2 6 3 Drop 43 | . 6 4 11 7 4 11 . Fire 78 | . 24 6 1 . 14 18 15 Melee 66 | . . 9 2 9 1 44 1 Ram . | . . . . . . . . Kick . | . . . . . . . . Crush . | . . . . . . . . Escape Stasis . | . . . . . . . . Rewire 1 | . . . . 1 . . . Trap . | . . . . . . . . Miscellaneous . | . . . . . . . . Route ------- -11/Scrapyard -10/Materials -9/Materials -9/Mines (discovered 4 exits: *Mat x2 / *Exi / *Zio) -9/Exiles (discovered 2 exits: *Min x2) -8/Mines -8/Materials -8/Storage History --------- Turn | Location | Event 36 | -11/Scrapyard | Discovered new exit (range 14) 83 | -11/Scrapyard | Entered Materials 347 | -10/Materials | Build established: Mutant 466 | -10/Materials | Discovered new exit (range 15) 482 | -10/Materials | Identified exit to Materials 484 | -10/Materials | Entered another Materials area 484 | -9/Materials | Evolved 2 slots: Propulsion x1, Utility x1 507 | -9/Materials | Discovered new exit (range 13) 656 | -9/Materials | Identified exit to Mines 693 | -9/Materials | Entered Mines 697 | -9/Mines | Met a Derelict bent on vengeance 715 | -9/Mines | A weapon hastily lodged in a ceiling crevice suddenly fell to the ground 731 | -9/Mines | Found DCF Scrap (11 items) 788 | -9/Mines | Learned 4 Materials zone layouts 945 | -9/Mines | Discovered new exit (range 10) 1002 | -9/Mines | Identified exit to Materials 1098 | -9/Mines | Found a damaged Exp. Sensor Array with a note attached 1102 | -9/Mines | Found Prototype Device 1213 | -9/Mines | Assisted by bots powering up and referring to "LRC-V3" 1378 | -9/Mines | A Derelict revealed a hidden shortcut to a safe place 1379 | -9/Mines | Discovered exit to Materials (range 7) 1381 | -9/Mines | Identified exit to Zion 1398 | -9/Mines | Deemed a non-threat by the Exiles lab entrance 1398 | -9/Mines | Discovered new exit (range 5) 1404 | -9/Mines | Identified exit to Exiles 1520 | -9/Mines | Entered Exiles 1520 | -9/Exiles | Accompanied by 3 allies 1557 | -9/Exiles | Discovered new exit (range 15) 1579 | -9/Exiles | Identified exit to Mines 1615 | -9/Exiles | Met 8R-AWN 1653 | -9/Exiles | Met EX-HEX 1764 | -9/Exiles | Met EX-DEC 1801 | -9/Exiles | Visited The Gauntlet 2051 | -9/Exiles | Learned location of Zion (-7) 2142 | -9/Exiles | Discovered exit to Mines (range 14) 2301 | -9/Exiles | Met EX-BIN 2504 | -9/Exiles | Aligned with FarCom system 2506 | -9/Exiles | Given EX-Vault access code 3124 | -9/Exiles | Opened EX-Vault 3136 | -9/Exiles | Found Prototype Processor 3141 | -9/Exiles | Found Prototype Energy Cannon 3149 | -9/Exiles | Found Prototype Energy Gun 3180 | -9/Exiles | Identified 0b10 Alert Chip 3254 | -9/Exiles | Warned to stay clear of 0b10 Research branches 3401 | -9/Exiles | Left Exiles lab with 0b10 Alert Chip 3401 | -9/Exiles | Entered Mines 3401 | -8/Mines | Accompanied by 3 allies 3446 | -8/Mines | Lost 3 allies 3605 | -8/Mines | Discovered exit to Materials (range 13) 3641 | -8/Mines | Entered Materials 3641 | -8/Materials | Evolved 2 slots: Power x1, Utility x1 3642 | -8/Materials | Identified exit to Storage 3788 | -8/Materials | Build established: Scavenger-Mutant 4113 | -8/Materials | Identified Exp. Sensor Array 4642 | -8/Materials | Entered Storage 4801 | -8/Storage | Core integrity fell below 50% 4816 | -8/Storage | Core integrity fell below 20% 4824 | -8/Storage | Destroyed by G-47 Trooper with Particle Gun Last Messages --------------- 04770_ U-05 Engineer builds a Wall. 04770_ Aluminum Leg destroyed. 04770_ ALERT: Hostiles spotted, dispatching reinforcements to Terminal S013. 04770_ U-05 Engineer builds a Wall. 04771_ Pulse Rifle broken. 04771_ Overheating: Short circuit. 04771_ Acquired 44 matter. 04779_ U-05 Engineer lays Concrete. 04780_ Flight Unit destroyed. 04780_ U-05 Engineer lays Concrete. 04782_ U-05 Engineer builds a Wall. 04789_ Critical hit (Burn: +37). 04792_ Flight Unit destroyed. 04792_ Broken Pulse Rifle destroyed. 04794_ Flight Unit destroyed. 04796_ Lgt. Nuclear Core destroyed. 04801_ Critical hit (Burn: +37). 04821_ 0b10 Alert Chip destroyed. 04824_ Critical hit (Burn: +37). Map ----- +----------------------------------------------------+ | ?????????????????????????????????????????????????? | | ?????????????????????????????????????????????????? | | ?????????????????????????????????????????????????? | | ?????????????????????????????????????????????????? | | ?????????????????????????????????????????????????? | | ?????????????????????????????????????????????????? | | ?????????????????????????????????????????????????? | | ?????????????????????????????????????????????????? | | ????????????????????l????????????????????????????? | | ??????????????????g?????????????? ?????????????? | | ????????????????????????? ??????? ##???????????? | | ????????????????????????? ??????#|* # ?????????? | | ?????????????????????????+????###%! ## ??????????? | | ????????????????????????? ????# #%% # ??????????? | | ????????????????????????? ????#*#= ##?????????? | | ????????????????????????? ????# # ??????????? | | ????????????????????????? ????? #??????????? | | ???????????????????????Y# #???? #??????????? | | ????????????????????????# #???? T#??????????? | | ????????????????????????# #????# ???????????? | | ????????????????????????# #????# #????????????? | | ????????????????????????# #????# #????????????? | | ????????####????????????# #????# ##???????????? | | ????????#T"#????????????# #????# #???????????? | | ?????#### "############## ####### #????????????? | | ?????# ^ @ g ! #????????????? | | ?????# g[ #????????????? | | ?????# gY #????????????? | | ?????######+##+##########T###########????????????? | | ?????# #??????###??????????????????????? | | ?????# #???????????????????????????????? | | ?????# """" """" #???????????????????????????????? | | ?????# """" """" #???????????????????????????????? | | ?????# """" """" ##??????????????????????????????? | | ?????# """" """" "#??????????????????????????????? | | ?????# ##??????????????????????????????? | | ?????#############???????????????????????????????? | | | | | | | | | | | | | | | | | | | | | | | | | | | +----------------------------------------------------+ Best States ------------- Heat Dissipation 31 Energy Generation 23 Energy Capacity 300 Matter Stores 300 Matter Capacity 300 Sight Range 18 Robot Scan Range 20 Terrain Scan Range 16 Terrain Scan Density 10 Armor Coverage 150 Evasion (%) 55 Targeting Accuracy 6 Recoil Reduction 2 Item Schematics ----------------- None Robot Schematics ------------------ None Fabricated ------------ Nothing Repaired ---------- Nothing Studied --------- None Alien Tech Used ----------------- None Achievements -------------- Overwhelming Resistances Are Futile Sixth Sense Spot Them First There's More Where That Came From Challenges ------------ None Game ------ Seed LargeSpacefoldChainsword Manual? 0 Play Time 00:57:23 Cumulative 0.9 hours Start 2026.03.15 @ 20:48:52 End 2026.03.15 @ 23:49:02 Sessions 1 Manual Loads 0 Difficulty Rogue Special Mode None Game No. 1 Rogue 1 Adventurer 0 Explorer 0 Win Type - Total 0 Types 0/0/0/0/0/0/0/0/0/0 Lore% 5 Gallery% 3 Achievement% 19 Wizard Run 0 Options --------- Layout 0 ASCII 0 Keyboard 0 Movement Numpad Keybinds 0 Fullscreen 1 Font 18/Terminus Map View 76x50 Zoom Use 0% Tactical HUD 1 Map Filters NONE Filters NONE Steam 1 RUN: 6943be55-a034-4af8-b347-e0462b57ed0b